Cogmind - Beta 16 @@@ ROGUE MODE // 2025.11.12 @ 17:52:52 Player: Dosh Result: Destroyed by YI-UF0 with YI-UF0's Doublenader Performance ------------- Evolutions (0) 0 Regions Visited (2) 400 Robots Destroyed (30) 150 Value Destroyed (572) 572 Prototype IDs (4) 80 Alien Tech Used (0) 0 Bonus (-60) -60 TOTAL SCORE: 1142 Bonus ------- Friendly Fire -60 Cogmind --------- Core Integrity 0/250 Matter 202/300 Energy 84/100 System Corruption 0% Temperature Cool (0) Movement Treading (160) Location -10/Mines Parts ------- > --- POWER (1) -------- (None) > --- PROPULSION (2) --- Light Treads Improved Treads > --- UTILITY (2) ------ Large Storage Unit Core Shielding > --- WEAPON (2) ------- Light Assault Rifle Light Assault Rifle > --- INVENTORY (15) --- Ion Engine Improved Treads Armored Wheel Armored Wheel Armored Wheel Shield Generator Light Cannon Light Cannon Grenade Launcher Datajack Peak State ------------ > --- POWER ------------ Ion Engine > --- PROPULSION ------- Improved Treads Improved Treads > --- UTILITY ---------- Small Storage Unit Core Shielding > --- WEAPON ----------- Light Cannon Light Cannon > --- INVENTORY -------- Light Ion Engine Light Treads Light Treads Improved Treads Shield Generator Assault Rifle Light Assault Rifle Light Assault Rifle [Rating: 10] Favorites ----------- Power Ion Engine Engine Ion Engine Propulsion Improved Treads Treads Improved Treads Utility Core Shielding Storage Large Storage Unit Protection Core Shielding Weapon Light Cannon Ballistic Gun Light Assault Rifle Ballistic Cannon Light Cannon Special Melee Weapon Datajack Build | -11 -10 -10 ------- Run | Yrd Mat Min Slots Evolved . | . . . Power . | . . . Propulsion . | . . . Utility . | . . . Weapon . | . . . Parts Attached 16 | 7 7 2 Power 2 | 2 . . Engine 2 | 2 . . Core . | . . . Reactor . | . . . Propulsion 5 | 2 2 1 Treads 5 | 2 2 1 Leg . | . . . Wheel . | . . . Hover . | . . . Flight . | . . . Utility 3 | 1 2 . Device . | . . . Storage 2 | 1 1 . Processor . | . . . Hackware . | . . . Protection 1 | . 1 . Artifact . | . . . Weapon 6 | 2 3 1 Energy Gun . | . . . Energy Cannon . | . . . Ballistic Gun 3 | 2 . 1 Ballistic Cannon 2 | . 2 . Launcher . | . . . Special Weapon . | . . . Impact Weapon . | . . . Slashing Weapon . | . . . Piercing Weapon . | . . . Special Melee Weapon 1 | . 1 . Unidentified Prototypes . | . . . Parts Lost 4 | . . 4 Power 1 | . . 1 Propulsion 2 | . . 2 Utility . | . . . Weapon 1 | . . 1 Highest Loss Streak 4 | . . 4 To Critical Strikes . | . . . Average Backups 9 | . 8 12 Power . | . . 1 Propulsion 4 | . 4 5 Utility . | . . 1 Weapon 2 | . 2 3 Tool/Special . | . . . Unused Backups 7 | . . 7 Power 1 | . . 1 Propulsion 4 | . . 4 Utility 1 | . . 1 Weapon 1 | . . 1 Tool/Special . | . . . Average Slot Usage (%) 98 | . 98 99 Engine 13 | . 14 13 Treads 28 | . 28 28 Storage 14 | . 14 14 Protection 12 | . 12 14 Ballistic Gun 5 | . 5 6 Ballistic Cannon 21 | . 22 21 Peak Build Rating 10 | 6 10 10 Average Rating 9 | 4 9 9 On Entrance 5 | . 6 10 Avg Prop Armor Cover (%) . | . . . Naked Turns . | . . . Heaviest Build 32 | 13 32 32 Greatest Support 46 | 40 46 46 Greatest Overweight (x) . | . . . Average Overweight (x) . | . . . Largest Inventory Capacity 15 | 8 15 15 Average Capacity 12 | 6 12 15 Most Carried 13 | 2 12 13 Average Carried 9 | . 8 12 Final Capacity 15 | 8 15 15 Final Carried 12 | 2 12 10 Class Distribution -------------------- 100% | Mutant Dominant Class ---------------- Mutant | -10/Materials Mutant | -10/Mines Resources | -11 -10 -10 ----------- Run | Yrd Mat Min Matter Collected 767 | 208 509 50 Remotely . | . . . Salvage Created 650 | . 605 45 Parts 47 | . 42 5 Haulers Intercepted 2 | . 2 . Recyclers Shooed 1 | . . 1 Parts Field Recycled . | . . . Retrieved Matter . | . . . Parts Self-Destructed . | . . . Prevented . | . . . Parts Restored . | . . . Kills | -11 -10 -10 ------- Run | Yrd Mat Min Combat Hostiles Destroyed 23 | . 20 3 Guns 3 | . 3 . Cannons 20 | . 17 3 Classes Destroyed 7 | . 7 . Worker 2 | . 2 . Tunneler 1 | . 1 . Hauler 2 | . 2 . Recycler 1 | . 1 . Watcher 1 | . 1 . Swarmer 12 | . 9 3 Grunt 11 | . 11 . Best Kill Streak 7 | . 7 3 Combat Bots Only 5 | . 5 3 Max Kills in Single Turn 2 | . 2 1 Gunslinging . | . . . Exploded . | . . . Melee . | . . . Uniques/NPCs Destroyed . | . . . Combat | -11 -10 -10 -------- Run | Yrd Mat Min Hostile Shots Fired 109 | . 72 37 Missed 29 | . 23 6 Hits 80 | . 49 31 Projectile 80 | . 49 31 AOE 22 | . . 22 Damage Taken 1223 | . 489 734 Core 255 | . 94 161 Absorbed by Shields . | . . . Redirected to Shielding 46 | . 12 34 Core Remaining (%) 100 | 100 . . Volleys Fired 72 | . 59 13 Largest 2 | . 2 2 Hottest 60 | . 60 60 Shots Fired 144 | . 118 26 Gun 44 | . 26 18 Cannon 100 | . 92 8 Launcher . | . . . Special . | . . . Kinetic 144 | . 118 26 Thermal . | . . . Explosive . | . . . Electromagnetic . | . . . Robot Hit Streak 6 | . 6 6 Robot Miss Streak 3 | . 3 2 Penetration Max . | . . . Secondary Targets . | . . . Shots Hit Robots 84 | . 66 18 Core Hits 34 | . 26 8 Critical Kills . | . . . Critical Parts Destroyed . | . . . Critical Strikes 4 | . 4 . Blast 4 | . 4 . Melee Attacks 1 | . . 1 Impact . | . . . Slashing . | . . . Piercing . | . . . Sneak Attacks 1 | . . 1 Combat Hostiles . | . . . Follow-up Attacks . | . . . Damage Inflicted 1337 | . 1121 216 Guns 290 | . 145 145 Cannons 992 | . 945 47 Explosions . | . . . Melee . | . . . Ramming 55 | . 31 24 Kinetic 1282 | . 1090 192 Thermal . | . . . Explosive . | . . . Electromagnetic . | . . . Impact . | . . . Slashing . | . . . Piercing . | . . . Highest Corruption . | . . . Average Corruption . | . . . Corruption Purged . | . . . Corruption Blocked . | . . . Overload Shots . | . . . Overflow Damage 21 | . 21 . Projectiles 21 | . 21 . Explosions . | . . . Melee . | . . . Knockbacks 14 | . 14 . Impact . | . . . Kinetic 13 | . 13 . Secondary 1 | . 1 . Self-Inflicted Damage . | . . . Shots . | . . . Rammed 9 | . 5 4 Targets Rammed 11 | . 7 4 Kicked . | . . . Crushed 2 | . 2 . Highest Temperature 63 | . 63 . Average Temperature 25 | . 25 . Received Heat Transfer 117 | . 117 . Siege Activations . | . . . Martial Activations . | . . . Shielding Activations . | . . . Robots Disrupted . | . . . Combat Hostiles . | . . . Robots Corrupted . | . . . Combat Hostiles . | . . . Parts Fried . | . . . Impact Corruptions . | . . . Robots Melted . | . . . Combat Hostiles . | . . . Parts Melted . | . . . Heat Transferred . | . . . Parts Sabotaged . | . . . Parts Stolen . | . . . Parts Stripped . | . . . Power Chain Reactions . | . . . Alert | -11 -10 -10 ------- Run | Yrd Mat Min Maximum Alert Level 1 | . 1 . Low Security (%) 70 | 100 61 100 Level 1 29 | . 38 . Level 2 . | . . . Level 3 . | . . . Level 4 . | . . . Level 5 . | . . . High Security . | . . . Max Security . | . . . Peak Influence 323 | . 323 126 Initial 96 | . . 96 Average 112 | . 129 62 Influence Increases 726 | . 656 70 Destroy 0b10 Robot/C 460 | . 400 60 Destroy 0b10 Robot/NC 35 | . 35 . Destroy Leader 86 | . 76 10 Successful Hack 23 | . 23 . Select Force Hacks 60 | . 60 . Disable Machine 45 | . 45 . Destroy Structure 2 | . 2 . Lose Combat Pursuer 15 | . 15 . Influence Decreases 726 | . 407 319 Entered New Map 153 | . . 153 Time Decay 573 | . 407 166 Squads Dispatched 4 | . 4 . Investigation 4 | . 4 . Extermination . | . . . Reinforcement . | . . . Assault . | . . . Garrison . | . . . Intercept . | . . . Searches Triggered . | . . . Construction Impeded . | . . . Haulers Reinforced . | . . . Active Scanning Responses . | . . . Cargo Convoy Interrupts . | . . . Stealth | -11 -10 -10 --------- Run | Yrd Mat Min Distress Signals . | . . . Communications Jammed . | . . . Distress Signals . | . . . Times Spotted 30 | . 26 4 Peak Tracking Total 4 | . 4 3 Tactical Retreats 1 | . 1 . Traps | -11 -10 -10 ------- Run | Yrd Mat Min Traps Triggered 3 | . 3 . Indirectly . | . . . Trap Hack Attempts 21 | . 21 . Triggered . | . . . Disarmed . | . . . Reprogrammed 2 | . 2 . Reused . | . . . Traps Extracted . | . . . Installed . | . . . Triggered . | . . . Machines | -11 -10 -10 ---------- Run | Yrd Mat Min Machines Disabled 3 | . 3 . Max in Single Turn 1 | . 1 . Machines Repaired . | . . . Machines Dismantled . | . . . Machines Sabotaged . | . . . Overloaded Fab Kills . | . . . Hacking | -11 -10 -10 --------- Run | Yrd Mat Min Machines Accessed 8 | . 8 . Terminals 6 | . 6 . Fabricators . | . . . Repair Stations . | . . . Recycling Units 2 | . 2 . Scanalyzers . | . . . Garrison Access . | . . . Total Hacks 22 | . 22 . Successful 10 | . 10 . Failed 12 | . 12 . Catastrophic . | . . . Database Lockouts . | . . . Manual 18 | . 18 . Terminals 20 | . 20 . Fabricators . | . . . Repair Stations . | . . . Recycling Units 2 | . 2 . Scanalyzers . | . . . Garrison Access . | . . . Terminal Hacks 3 | . 3 . Robot Schematic 1 | . 1 . Prototype ID Bank 1 | . 1 . Locate Traps 1 | . 1 . Fabricator Hacks . | . . . Repair Station Hacks . | . . . Recycling Unit Hacks . | . . . Scanalyzer . | . . . Garrison Access Hacks . | . . . Unauthorized Hacks 7 | . 7 . Terminals 5 | . 5 . Skim 5 | . 5 . Fabricators . | . . . Repair Stations . | . . . Recycling Units 2 | . 2 . Tunnel 2 | . 2 . Scanalyzers . | . . . Garrison Access . | . . . Data Cores Recovered . | . . . Used . | . . . Hacking Detections 5 | . 5 . Full Trace Events . | . . . Feedback Events . | . . . Feedback Blocked . | . . . Robot Schematics Acquired 1 | . 1 . Robots Built . | . . . Authchips . | . . . Time . | . . . Total Robot Build Rating . | . . . Part Schematics Acquired . | . . . Parts Built . | . . . Authchips . | . . . Time . | . . . Total Part Build Rating . | . . . Part Studies Acquired . | . . . Parts Repaired . | . . . Time . | . . . Parts Recycled . | . . . Recycled Matter . | . . . Retrieved Matter . | . . . Retrieved Components . | . . . Parts Scanalyzed . | . . . Part Schematics Acquired . | . . . Parts Damaged . | . . . Bothacking | -11 -10 -10 ------------ Run | Yrd Mat Min Used RIF Installer . | . . . Robots Hacked 1 | . . 1 Non-combat . | . . . Combat 1 | . . 1 Robot Hacks Applied 1 | . . 1 parse_system 1 | . . 1 Relay Couplers Released . | . . . Fabnet Peak Effective % . | . . . Robots Rewired . | . . . Allies Hacked . | . . . Hacks Repelled . | . . . Allies | -11 -10 -10 -------- Run | Yrd Mat Min Total Allies . | . . . Largest Group . | . . . Highest-Rated Group . | . . . Highest-Rated Ally . | . . . Total Orders . | . . . Ally Attacks . | . . . Total Damage . | . . . Kills . | . . . Allies Corrupted . | . . . Allies Melted . | . . . Intel | -11 -10 -10 ------- Run | Yrd Mat Min Active Infowar (turns) . | . . . Robot Analysis Total . | . . . Derelict Logs Recovered 1 | . . 1 Drone Launches . | . . . Drone Recoveries . | . . . Exploration | -11 -10 -10 ------------- Run | Yrd Mat Min Turns Passed 1994 | 74 1542 378 Spaces Moved 962 | 44 728 190 Core 6 | 6 . . Treads 956 | 38 728 190 Legs . | . . . Wheels . | . . . Hover . | . . . Flight . | . . . Fastest Speed 50 | 50 160 160 Average Speed 159 | 145 160 160 Slowest Speed 160 | 160 160 160 Overloaded Moves . | . . . Propulsion Burnouts . | . . . Robots Hopped . | . . . Potential Cave-ins . | . . . Cave-ins Triggered . | . . . Exploration Rate (%) 47 | 4 94 45 Regions Visited 2 Branch Regions 1 Pre-discovered Areas 4 | . 3 1 Known Exits Taken 1 | . 1 . Unknown Exits Taken 1 | 1 . . Scrap Searched . | . . . Spaces Dug . | . . . Terrain Destroyed . | . . . Melee . | . . . Projectile . | . . . AOE . | . . . Terrain Rammed . | . . . Walls Destroyed . | . . . Machines Disabled . | . . . Actions | -11 -10 -10 --------- Run | Yrd Mat Min Total 1273 | 51 986 236 Wait 171 | . 151 20 Move 960 | 43 727 190 Hop . | . . . Pick Up 10 | 1 8 1 Fast Attach 9 | 6 3 . Attach 3 | . . 3 Detach 2 | . 2 . Swap 10 | 1 5 4 Drop 3 | . 3 . Fire 72 | . 59 13 Melee 1 | . . 1 Ram . | . . . Kick . | . . . Crush 11 | . 7 4 Escape Stasis . | . . . Rewire . | . . . Trap 21 | . 21 . Miscellaneous . | . . . Route ------- -11/Scrapyard -10/Materials (discovered 4 exits: *Mat x3 / *Min) -10/Mines (discovered 2 exits: *Mat / Sub) History --------- Turn | Location | Event 9 | -11/Scrapyard | Discovered new exit (range 13) 75 | -11/Scrapyard | Entered Materials 301 | -10/Materials | Build established: Mutant 1070 | -10/Materials | Discovered new exit (range 15) 1235 | -10/Materials | Discovered new exit (range 14) 1320 | -10/Materials | Discovered new exit (range 12) 1350 | -10/Materials | Learned Storage stockpile data 1403 | -10/Materials | Learned location of 1 exit from Storage 1446 | -10/Materials | Learned location of Storage (-9) 1481 | -10/Materials | Learned location of 1 exit from Recycling 1506 | -10/Materials | Learned Storage stockpile data 1521 | -10/Materials | Identified exit to Materials 1525 | -10/Materials | Learned location of 2 exits from Mines 1539 | -10/Materials | Identified exit to Mines 1562 | -10/Materials | Learned 4 Recycling zone layouts 1595 | -10/Materials | Learned Storage trap positions 1617 | -10/Materials | Entered Mines 1618 | -10/Mines | Identified exit to Subcaves 1780 | -10/Mines | Learned location of Zion (-6) 1904 | -10/Mines | YI-UF0 nonchalantly dropped a Grenade Launcher on the ground 1978 | -10/Mines | Core integrity fell below 50% 1988 | -10/Mines | Core integrity fell below 20% 1995 | -10/Mines | Destroyed by YI-UF0 with YI-UF0's Doublenader Last Messages --------------- 01724_ R-06 Scavenger collects Lgt. Ion Engine. 01780_ Acquired derelict log, extracted data. World map updated: -6/Zion. 01904_ YI-UF0 nonchalantly drops a Grenade Launcher on the ground. 01904_ YI-UF0 mumbles something. 01906_ Acquired Grenade Launcher. 01915_ Sneak attack on YI-UF0. 01915_ Jacked YI-UF0... >>parse_system Reading system data... New IDs: YI-UF0's Bottomless Matter Pit YI-UF0's Doublenader 01916_ YI-UF0 mumbles something. 01970_ YI-UF0: "BOOM TO YOU TOO!" 01972_ YI-UF0 mumbles something. 01981_ Imp. Treads destroyed. 01983_ Ion Engine destroyed. 01986_ YI-UF0 mumbles something. 01991_ Assault Rifle destroyed. Map ----- +----------------------------------------------------+ | | | | | | | | | | | | | | | | | | | | | | | | | | | | | | | | | | | | | ??????????????????????????????????????????? | | ??????????????????????????##?????????####?? | | ??????????????????######## ###????### ##? | | ?????????????????## ###?## #? | | ?????????????????# #?# #? | | ?????????????????# ### #?? | | ??????????######## # #?? | | ??????????# g @ ##? | | ????????### # t #? | | ????????# ######## ## #? | | ????????# #??????## #### ##? | | ## ????# ##???????## ## ##?? | | ### #?????????# ## ##?? | | #?????????## ## #?? | | ## #??????????## # # # #?? | | ## ?# #???????????### ##### ### #?? | | ?## ?? #?????????????# #????##?## ##?? | | ??## ?? #?????????????# #????????# #??? | | ???##??#####?????????????# #????????# #??? | | ???????????????????###???# #??###???# #??? | | ??????????????????## #??# ?? #???# #??? | | ??????????????????# #?###??# #???# #??? | | ??????????????????# ##????# ##### #??? | | ??????????????????# ##???# ## #??? | | ?????????????????## #???# ## #####??? | | ?????????? ?????## #??## ## #??????? | | ????????? ## ##??# #??????? | | ?????????# #???# ####??????? | | ??????????# #???# #?????????? | | ??????????# ## ##### ##????????? | | ?????????# ####??# ###??????? | | ?????????? ????????# ###### ##?????? | +----------------------------------------------------+ Best States ------------- Heat Dissipation 25 Energy Generation 10 Energy Capacity 250 Matter Stores 300 Matter Capacity 300 Sight Range 16 Terrain Scan Density 10 Core Shielding 20 Evasion (%) 40 Recoil Reduction 2 Item Schematics ----------------- None Robot Schematics ------------------ M-13 Machinist | -10/Materials | Hacked Fabricated ------------ Nothing Repaired ---------- Nothing Studied --------- None Alien Tech Used ----------------- None Achievements -------------- None Challenges ------------ None Game ------ Seed TowerScrapWell Manual? 0 Play Time 00:09:21 Cumulative 803.7 hours Start 2025.11.12 @ 17:43:52 End 2025.11.12 @ 17:52:52 Sessions 1 Manual Loads 0 Difficulty Rogue Special Mode None Game No. 402 Rogue 402 Adventurer 0 Explorer 0 Win Type - Total 67 Types 43/5/6/4/1/1/3/2/1/1 Lore% 92 Gallery% 85 Achievement% 68 Wizard Run 0 Options --------- Layout 0 ASCII 0 Keyboard 1 Movement Numpad Keybinds 0 Fullscreen 2 Font 18/SmallcapsGlow Map View 76x50 Zoom Use 0% Tactical HUD 1 Map Filters NONE Filters NONE Steam 1 RUN: 6058158c-c953-4a40-b55b-935ce86c3705